Workbook

Sheet Start her!
B1: Årstabeller 2020
B2: Akademiraadet | D2: Disposition | E2: Afsnit i årsrapport
D3: Beretning og Målrapportering
D4: Tabel 1. Virksomhedens økonomiske hoved og nøgletal | E4: 2.2. Ledelsesberetning
D5: Tabel 2. Virksomhedens hovedkonti | E5: 2.2. Ledelsesberetning
D6: Tabel 2A. Overført overskud | E6: 2.2. Ledelsesberetning
D7: Tabel 3. Sammenfatning af økonomi for virksomhedens opgaver | E7: 2.3. Kerneopgaver
D8: Tabel 3a. Centrale aktivitetsoplysninger | E8: 2.3 Kerneopgaver
D9: Tabel 5. Forventninger til det kommende år | E9: 2.5. Forventninger til det kommende år
D11: Økonomitabeller
D12: Tabel 6. Resultatopgørelse | E12: 3.2. Resultatopgørelse mv.
D13: Tabel 7. Resultatdisponering | E13: 3.2. Resultatopgørelse mv.
D14: Tabel 8. Balancen | E14: 3.3. Balancen
D15: Tabel 9. Egenkapitalforklaring | E15: 3.4. Egenkapitalforklaring
D16: Tabel 10.Udnyttelse af låneramme | E16: 3.5. Likviditet og låneramme
D17: Tabel 11.Opfølgning på lønsumsloft | E17: 3.6. Opfølgning på lønsumsloft
D18: Tabel 12. Bevillingsregnskab | E18: 3.7. Bevillingsregnskabet
D19: Tabel 12A. Virksomhedens udgiftsbaserede hovedkonti | E19: 3.8. Udgiftsbaserede hovedkonti
D20: Noter
D21: Tabel 13. Note 1: Immaterielle anlægsaktiver (obligatorisk) | E21: 4.1. Noter til resultatopgørelse og balance
D22: Tabel 14. Note 2: Materielle anlægsaktiver (obligatorisk) | E22: 4.1. Noter til resultatopgørelse og balance
D23: Tabel 14a. Hensatte forpligtelser | E23: 4.1. Noter til resultatopgørelse og balance
D24: Bilag
D25: Tabel 15. Sammenfatning af elementer i prisfastsættelse | E25: 4.2. Indtægtsdækket virksomhed
D26: Tabel 16. Oversigt over akkumuleret resultat for indtægtsdækket virks. | E26: 4.2. Indtægtsdækket virksomhed
D27: Tabel 17. Oversigt over gebyrordninger med adm. fastsat takst | E27: 4.3. Gebyrfinansieret virksomhed
D28: Tabel 18. Oversigt over gebyrordninger med lovbestemt takst | E28: 4.3. Gebyrfinansieret virksomhed
D29: Tabel 19. Andre tilskudsfinansierede aktiviteter (uk. 97) | E29: 4.4. Tilskudsfinansierede aktiviteter
D30: Tabel 19a. Tilskudsfinansieret forskningsvirksomhed (uk. 95) | E30: 4.4. Tilskudsfinansierede aktiviteter
D31: Tabel 20. Oversigt over afsluttede anlægsprojekter | E31: 4.5. Forelagte investeringer | G31: [vælg mio. el. tusinder]
D32: Tabel 21. Oversigt over igangværende anlægsprojekter | E32: 4.5 Forelagte investeringer | G32: 1000 kr.
D33: Tabel 22. It-omkostninger | E33: 4.6 IT-omkostninger | G33: Mio. kr.
D34: Tabel 23. Tilskudsregnskab | E34: 4.7 Supplerende bilag
D35: Tabel 24. Udestående tilsagn | E35: 4.7 Supplerende bilag
D36: Tabel 25. Afrapportering på nøgletal for forvaltnignsopgaver | E36: 4.7 Supplerende bilag
D38: Supplerende noter
D39: Skabelon til supplerende noter | E39: 4.7 Supplerende bilag
D41: Tabellerne er udfyldt i | E41: 1000

Sheet Tabel 1. Øk. hoved- og nlg tal
A1: Tabel 1. Virksomhedens økonomiske hoved- og nøgletal
A2: Hovedtotal
A3: ='Start her!'!E41&", løbende priser" -> 1000, løbende priser | B3: 2019 | C3: 2020 | D3: 2021 | M3: Tabel 01 Hovedtabel 2020 - resultatopgørelse og balancedel
A4: Resultatopgørelse | M4: Beløbstype | N4: Virksomhed | O4: 11887252 Kgl. Akademi for de Skønne Kunster
A5: Ordinære driftsindtægter | B5: ='Tabel 6. Resultatopgørelse'!C13 -> -3460 | C5: ='Tabel 6. Resultatopgørelse'!D13 -> 0 | D5: ='Tabel 6. Resultatopgørelse'!E13 -> 0 | N5: ResultatOGBalance | O5: Resultatopgørelsesdel | P5: Balancedel
A6: - Heraf indtægtsført bevilling | B6: ='Tabel 6. Resultatopgørelse'!C7 -> -3200 | C6: 0 | D6: ='Tabel 6. Resultatopgørelse'!E7 -> 0 | M6: Ordinære driftsindtægter Primobalance (incl. primokorrektioner) | O6: 0 | P6: 0
A7: Ordinære driftsomkostninger | B7: ='Tabel 6. Resultatopgørelse'!C28 -> 3518.3 | C7: 0 | D7: ='Tabel 6. Resultatopgørelse'!E28 -> 0 | M7: Ordinære driftsindtægter Regnskab periode: 01-13 2020 | O7: -3100000 | P7: 0
A8: Resultat af ordinær drift | B8: ='Tabel 6. Resultatopgørelse'!C29 -> 58.3 | C8: ='Tabel 6. Resultatopgørelse'!D29 -> 0 | D8: ='Tabel 6. Resultatopgørelse'!E29 -> 0 | M8: Ordinære driftsindtægter Ultimobalance (år-til-dato) | O8: 0 | P8: 0
A9: Resultat før finansielle poster | B9: ='Tabel 6. Resultatopgørelse'!C33 -> 53.1 | C9: ='Tabel 6. Resultatopgørelse'!D33 -> 0 | D9: ='Tabel 6. Resultatopgørelse'!E33 -> 0 | M9: Ordinære driftsomkostninger Primobalance (incl. primokorrektioner) | O9: 0 | P9: 0
A10: Årets resultat | B10: ='Tabel 6. Resultatopgørelse'!C41 -> 57 | C10: ='Tabel 6. Resultatopgørelse'!D41 -> 0 | D10: ='Tabel 6. Resultatopgørelse'!E41 -> 0 | M10: Ordinære driftsomkostninger Regnskab per.: 01-13 2020 | O10: 2959730 | P10: 0
A11: Balance | M11: Ordinære driftsomkostninger Ultimobalance (år-til-dato) | O11: 0 | P11: 0
A12: Anlægsaktiver | B12: ='Tabel 8. Balancen'!C23 -> 0 | C12: ='Tabel 8. Balancen'!D23 -> 0 | D12: 0 | M12: Resultat af ordinære drift | O12: -140270 | P12: 0
A13: Omsætningsaktiver | B13: ='Tabel 8. Balancen'!C34 -> 0 | C13: ='Tabel 8. Balancen'!D34 -> 0 | D13: 0 | M13: Tillæg til finansielle poster | O13: 204.03 | P13: 0
A14: Egenkapital | B14: ='Tabel 8. Balancen'!C46 -> 0 | C14: ='Tabel 8. Balancen'!D46 -> 0 | D14: 0 | M14: Resultat før finansielle poster | O14: -140065.97 | P14: 0
A15: Langfristet gæld | B15: ='Tabel 8. Balancen'!C57 -> 0 | C15: ='Tabel 8. Balancen'!D57 -> 0 | D15: 0 | M15: Regnskab år-til-dato | O15: 2413.33 | P15: 0
A16: Kortfristet gæld | B16: ='Tabel 8. Balancen'!C67 -> 0 | C16: ='Tabel 8. Balancen'!D67 -> 0 | D16: 0 | M16: Årets resultat | O16: -137652.64 | P16: 0
A17: Lånerammen | B17: 300 | C17: 300 | D17: 0 | M17: Imma- og materielle anlægsaktiver Primobalance (inkl. PK ) | O17: 0 | P17: 41556.99
A18: Træk på lånerammen | B18: 41.6 | C18: 13.9 | D18: 0 | M18: Imma- og materielle anlægsaktiver Regnskab per.: 01-13 2020 | O18: 0 | P18: -27704.66
A19: Finansielle nøgletal | M19: Imma-og materielle anlægsaktiver Ultimobalance (år-til-dato) | O19: 0 | P19: 13852.33
A20: Udnyttelsesgrad af lånerammen | B20: =IF(B17=0, "-", B18/B17) -> 0.1386666667 | C20: =IF(C17=0, "-", C18/C17) -> 0.04633333333 | D20: =IF(D17=0, "-", D18/D17) -> - | M20: Omsætningsaktiver (ekskl. likvider) Primobalance (inkl. PK) | O20: 0 | P20: 155379.48
A21: Negativ udsvingsrate | B21: =IF('Tabel 8. Balancen'!C40=0, "-", 'Tabel 8. Balancen'!C45/'Tabel 8. Balancen'!C40) -> - | C21: =IF('Tabel 8. Balancen'!D40=0, "-", 'Tabel 8. Balancen'!D45/'Tabel 8. Balancen'!D40) -> - | D21: 0 | M21: Omsætningsaktiver (ekskl. likvider) Regnskab per.:01-13 2020 | O21: 0 | P21: 133607.09
A22: Bevillingsandel | B22: =IF(B5=0, "-",B6/B5) -> 0.9248554913 | C22: =IF(C5=0, "-",C6/C5) -> - | D22: =IF(D5=0, "-",D6/D5) -> - | M22: Omsætningsaktiver (ekskl. likvider) Ultimobal. (år-til-dato) | O22: 0 | P22: 288986.57
A23: Overskudsgrad | B23: =IF(B5=0, "-", B10/B5) -> -0.01647398844 | C23: =IF(C5=0, "-", C10/C5) -> - | D23: =IF(D5=0, "-", D10/D5) -> - | M23: Egenkapital Primobalance (incl. primokorrektioner) | O23: 0 | P23: -341172.58
A24: Personaleoplysninger | M24: Egenkapital Regnskab periode: 01-13 2020 | O24: -137652.64 | P24: 0
A25: Antal årsværk | B25: 2.9 | C25: 3 | D25: 2.7 | M25: Egenkapital Ultimobalance (år-til-dato) | O25: 0 | P25: -478825.22
A26: Årsværkspris | B26: 672.3 | C26: 647.8 | D26: 703 | M26: Langfristede forpligtelser Primobalance (inkl. PK) | O26: 0 | P26: -48483.15
M27: Langfristede forpligtelser Regnskab periode: 01-13 2020 | O27: 0 | P27: 27704.66
M28: Langfristede forpligtelser Ultimobalance (år-til-dato) | O28: 0 | P28: -20778.49
A29: Kopivenlig version: | M29: Kortfristede forpligtelser Primobalance (inkl. PK) | O29: 0 | P29: -706461.73
M30: Kortfristede forpligtelser Regnskab periode: 01-13 2020 | O30: 0 | P30: -23830.95
A31: =A1 -> Tabel 1. Virksomhedens økonomiske hoved- og nøgletal | M31: Kortfristede forpligtelser Ultimobalance (år-til-dato) | O31: 0 | P31: -730292.68
A32: =A2 -> Hovedtotal
A33: =A3 -> 1000, løbende priser | B33: =B3 -> 2019 | C33: 2020 | D33: 2021
A34: =A4 -> Resultatopgørelse
A35: =A5 -> Ordinære driftsindtægter | B35: -3460 | C35: 0 | D35: 0
A36: =A6 -> - Heraf indtægtsført bevilling | B36: -3200 | C36: 0 | D36: 0 | M36: Tabel 01 Personaleoplysninger - Lønomkostningsandel (H14-H18)
A37: =A7 -> Ordinære driftsomkostninger | B37: 3518.3 | C37: 0 | D37: 0 | M37: Virksomhed / Hovedkonto | N37: Beløbstype | O37: Antal årsværk | P37: Lønsumsloft 1 Bev | Q37: lønsumsloft 2 uforbrugt lønsum | R37: Lønsumsloft (mio. kr.) | S37: Lønforbrug (mio. kr.) | T37: Årsværkspris (hele kr) | U37: Ordinære driftsindtægter | V37: Lønomkostningsandel
A38: =A8 -> Resultat af ordinær drift | B38: 58.3 | C38: 0 | D38: 0 | M38: I alt | O38: 2.73 | P38: 2000000 | Q38: 1325000 | R38: 3325000 | S38: 1919217.59 | T38: 703010.1062 | U38: -3100000 | V38: 0.61910244
A39: =A9 -> Resultat før finansielle poster | B39: 53.1 | C39: 0 | D39: 0 | M39: 11887252 Kgl. Akademi for de Skønne Kunster | O39: 2.73 | P39: 2000000 | Q39: 1325000 | R39: 3325000 | S39: 1919217.59 | T39: 703010.1062 | U39: -3100000 | V39: 0.61910244
A40: =A10 -> Årets resultat | B40: 57 | C40: 0 | D40: 0 | M40: 212121 Det Kongelige Akademi for de Skønne Kunster | O40: 2.73 | P40: 2000000 | Q40: 1325000 | R40: 3325000 | S40: 1919217.59 | T40: 703010.1062 | U40: -3100000 | V40: 0.61910244
A41: =A11 -> Balance
A42: =A12 -> Anlægsaktiver | B42: 0 | C42: 0 | D42: 0
A43: =A13 -> Omsætningsaktiver | B43: 0 | C43: 0 | D43: 0
A44: =A14 -> Egenkapital | B44: 0 | C44: 0 | D44: 0 | M44: Tabel 01a Bevillingsandel (H13)
A45: =A15 -> Langfristet gæld | B45: 0 | C45: 0 | D45: 0 | M45: Virksomhed / Bogføringskreds | N45: Beløbstype | O45: Indtægtsført bevilling periode 01 - 13 2020 (mio. kr.) | P45: Ordinære driftsindtægter i alt, periode 01 - 13 2020 (mio. kr.) | Q45: Bevillingsandel
A46: =A16 -> Kortfristet gæld | B46: 0 | C46: 0 | D46: 0 | M46: I alt | O46: 3100000 | P46: 3100000 | Q46: 100
A47: =A17 -> Lånerammen | B47: 300 | C47: 300 | D47: 0 | M47: 11887252 Kgl. Akademi for de Skønne Kunster | O47: 3100000 | P47: 3100000 | Q47: 100
A48: =A18 -> Træk på lånerammen | B48: 41.6 | C48: 13.9 | D48: 0 | M48: 30251 Det Kgl. Akademi for de Skønne Kunster | O48: 3100000 | P48: 3100000 | Q48: 100
A49: =A19 -> Finansielle nøgletal
A50: =A20 -> Udnyttelsesgrad af lånerammen | B50: 0.1386666667 | C50: 0.04633333333 | D50: -
A51: =A21 -> Negativ udsvingsrate | B51: - | C51: - | D51: =D21 -> 0
A52: =A22 -> Bevillingsandel | B52: 0.9248554913 | C52: - | D52: -
A53: =A23 -> Overskudsgrad | B53: -0.01647398844 | C53: - | D53: - | M53: Tabel 06 Resultatopgørelse
A54: =A24 -> Personaleoplysninger | M54: Virksomhed / Resultat af ordinær drift / IndtægterOgOmkostninger / Subtotal på andet niveau / Resultatopgørelse | N54: Beløbstype | O54: Regnskab til og med senest afsluttede periode (12) | P54: Regnskab indeværende periode (Periode: 13) | Q54: Regnskab år til dato
A55: =A25 -> Antal årsværk | B55: =B25 -> 2.9 | C55: 3 | D55: 2.7 | M55: I alt | O55: -137652.64 | P55: 0 | Q55: -137652.64
A56: =A26 -> Årsværkspris | B56: =B26 -> 672.3 | C56: 647.8 | D56: 703 | M56: 11887252 Kgl. Akademi for de Skønne Kunster | O56: -137652.64 | P56: 0 | Q56: -137652.64
M57: Resultat af ordinær drift | O57: -140270 | P57: 0 | Q57: -140270
M58: Ordinære Driftsindtægter i alt | O58: -3100000 | P58: 0 | Q58: -3100000
M59: Indtægtsført bevilling i alt | O59: -3100000 | P59: 0 | Q59: -3100000
M60: Bevilling | O60: -3100000 | P60: 0 | Q60: -3100000
M61: Ordinære Driftsomkostninger i alt | O61: 2959730 | P61: 0 | Q61: 2959730
M62: Forbrugsomkostninger i alt | O62: 107060 | P62: 0 | Q62: 107060
M63: Husleje | O63: 107060 | P63: 0 | Q63: 107060
M64: Personaleomkostninger i alt | O64: 1943217.59 | P64: 0 | Q64: 1943217.59
M65: Lønninger | O65: 1677861.81 | P65: 0 | Q65: 1677861.81
M66: Andre personaleomkostninger | O66: 24000 | P66: 0 | Q66: 24000
M67: Pension | O67: 241355.78 | P67: 0 | Q67: 241355.78
M68: Årets af- og nedskrivninger | O68: 27704.66 | P68: 0 | Q68: 27704.66
M69: Af- og nedskrivninger | O69: 27704.66 | P69: 0 | Q69: 27704.66
M70: Andre ordinære driftsomkostninger | O70: 507732.61 | P70: 0 | Q70: 507732.61
M71: Andre ordinære driftsomkostninger | O71: 507732.61 | P71: 0 | Q71: 507732.61
M72: Internt køb af varer og tjenesteydelser | O72: 374015.14 | P72: 0 | Q72: 374015.14
M73: Internt køb af varer og tjnesteydelser | O73: 374015.14 | P73: 0 | Q73: 374015.14
M74: Øvrige | O74: 2617.36 | P74: 0 | Q74: 2617.36
M75: Øvrige | O75: 2617.36 | P75: 0 | Q75: 2617.36
M76: Øvrige | O76: 2617.36 | P76: 0 | Q76: 2617.36
M77: Andre driftsindtægter | O77: 0 | P77: 0 | Q77: 0
M78: Andre driftsomkostninger | O78: 204.03 | P78: 0 | Q78: 204.03
M79: Finansielle omkostninger | O79: 2413.33 | P79: 0 | Q79: 2413.33
M80: Øvrige | O80: 0 | P80: 0 | Q80: 0

Sheet Tabel 2. Hovedkonti
A1: Tabel 2. Virksomhedens hovedkonti
B2: (Mio. kr.) | C2: Bevilling (FL+TB) | D2: Regnskab 20xx | E2: Overført overskud ultimo
A3: Drift | B3: Udgifter | C3: 3.1 | D3: 3 | E3: 0.1
B5: Indtægter | C5: 0 | D5: 0 | E5: 0
A7: Administrerede ordninger | B7: Udgifter | D7: 0 | E7: 0
B9: Indtægter | C9: 0 | D9: 0 | E9: 0
A11: Anlæg | B11: Udgifter | C11: 0 | D11: 0 | E11: 0
B13: Indtægter | C13: 0 | D13: 0 | E13: 0
H18: Tabel 02 Virksomhedens økonomiske omfang
H19: Virksomhed / Gruppeinger / Udgift/indtægt/balance | J19: Bevilling
I20: Beløbstype | J20: FL (mio. kr.) | K20: TB (mio. kr.) | L20: Finansårets bevilling i alt (mio. kr.) | M20: Regnskab (mio. kr.) | N20: Overført overskud/videreførsler ultimo året (mio. kr.) | O20: Omkostning og virkbærende | P20: Udgift og virkbærende | Q20: Omkostning og ikke virkbærende
H21: 11887252 Kgl. Akademi for de Skønne Kunster | J21: 3100000 | K21: 0 | L21: 3100000 | M21: 2962347.36 | N21: 428825.22 | O21: 73 | P21: 0 | Q21: 0
H22: 10 Drift | J22: 3100000 | K22: 0 | L22: 3100000 | M22: 2962347.36 | N22: 428825.22 | O22: 73 | P22: 0 | Q22: 0
H23: Udgiftskonto | J23: 3100000 | K23: 0 | L23: 3100000 | M23: 2962347.36 | N23: 0 | O23: 26 | P23: 0 | Q23: 0
H24: Indtægtskonto | J24: 0 | K24: 0 | L24: 0 | M24: 0 | N24: 0 | O24: 3 | P24: 0 | Q24: 0
H25: Balancekonto | J25: 0 | K25: 0 | L25: 0 | M25: 0 | N25: 428825.22 | O25: 44 | P25: 0 | Q25: 0

Sheet Tabel 2A.
A1: Overført overskud | E1: VEJLEDNING
A2: UDSKRIFTSEGNET VERSION NEDENFOR INDTASTNINGSARKET
A3: Indsæt og slet selv linjer i tilfælde af, at der mangler/er for mange.
A4: Tabel 2A. Overskud, hovedkonto [XX.XX.XX.]
A5: ='Start her!'!E41&"løbende, priser" -> 1000løbende, priser | C5: Reserveret bevilling | D5: Overført overskud
A6: Beholdning primo R-året | C6: 0 | D6: =SUM(D7:D7) -> 0
A7: Årets øvrige bevægelser | B7: 2020 | C7: 0 | D7: 0
A8: Beholdning ultimo R-året | C8: =SUM(C6:C7) -> 0 | D8: =SUM(D6:D7) -> 0

Sheet Tabel 3. og 3a.
A2: Tabel 3. Sammenfatning af økonomi for virksomhedens produkter/opgaver
A3: ='Start her!'!E41&"løbende, priser" -> 1000løbende, priser | B3: Bevilling (FL+TB) | C3: Øvrige indtægter | D3: Omkostninger | E3: Andel af årets overskud
A4: 0. Generelle fællesomkostninger | B4: 0 | C4: 0 | D4: 0 | E4: =SUM(B4:C4)+D4 -> 0
A5: Heraf Generel ledelse | B5: 0 | C5: 0 | D5: 0 | E5: =SUM(B5:C5)+D5 -> 0
A6: Heraf Økonomi,HR og strategi | B6: 0 | C6: 0 | D6: 0 | E6: =SUM(B6:C6)+D6 -> 0
A7: Heaf IT | B7: 0 | C7: 0 | D7: 0 | E7: =SUM(B7:C7)+D7 -> 0
A8: Heraf bygninger og intern service
A9: 1. Råd/Vejledning/Afgørelser
A10: I alt | B10: =SUM(B4:B9) -> 0 | C10: =SUM(C4:C9) -> 0 | D10: =SUM(D4:D9) -> 0 | E10: =SUM(E4:E9) -> 0
B12: =B3 -> Bevilling (FL+TB) | C12: =C3 -> Øvrige indtægter
A13: Til fordeling | B13: ='Tabel 6. Resultatopgørelse'!D7 -> 0 | C13: =SUM('Tabel 6. Resultatopgørelse'!D8:D12,'Tabel 6. Resultatopgørelse'!D31,'Tabel 6. Resultatopgørelse'!D35,'Tabel 6. Resultatopgørelse'!D39) -> 0
A14: Fordel i tabel 2 | B14: =B10 -> 0 | C14: =C10 -> 0
A15: Kontrol | B15: =B13-B14 -> 0 | C15: =C13-C14 -> 0
A21: Tabel 3a. Centrale aktivitetsoplysninger
B22: 20xx | C22: 20xx | D22: 20xx | E22: 20xx
A23: Aktivitet/enhed
A24: Aktivitet/enhed
A25: Aktivitet/enhed
A26: Aktivitet/enhed
A27: Aktivitet/enhed
A28: Aktivitet/enhed

Sheet Tabel 5 Forvent. til kom. år
A1: Tabel 5. Forventninger til det kommende år
B2: Regnskab 2020 | C2: Grundbudget 2021
A3: Bevilling og øvrige indtægter | B3: 0 | C3: 0 | K3: Tabel 05 Forventninger til det kommende år
A4: Udgifter | B4: 0 | C4: 0 | K4: Beløbstype | L4: Virksomhed | M4: 11887252 Kgl. Akademi for de Skønne Kunster
A5: Resultat | B5: =(B3+B4) -> 0 | C5: =C3+C4 -> 0 | L5: Finansår | M5: 2020 | N5: 2021
K6: Bevilling og øvrige indtægter Regnskab R-år (mio. kr.) | M6: -3100000 | N6: 0
K7: Udgift Regnskab R-år (mio. kr.) | M7: 2962347.36 | N7: 0
K8: Indtægt Grundbudget B-år (mio. kr.) | M8: 0 | N8: 0
K9: Bevilling 2021 (mio. kr.) | M9: 0 | N9: -3300000
K10: Bevilling og øvrige indtægter Grundbudget B-året (mio. kr.) | M10: 0 | N10: -3300000
K11: Udgift Grundbudget B-år (mio. kr.) | M11: 0 | N11: 3300000
K12: Resultat R-året (mio. kr.) | M12: -137652.64 | N12: 0
K13: Resultat grundbudget B-året (mio. kr.) | M13: 0 | N13: 0

Sheet Tabel 6. Resultatopgørelse
B2: Tabel 6. Resultatopgørelse
B3: ='Start her!'!E41&", løbende priser" -> 1000, løbende priser | C3: 2019 | D3: 2020 | E3: 2021 | F3: Formler | G3: VEJLEDNING TIL INDTASTNING - tal referer til kravspecifikation 2018
B4: Ordinære driftsindtægter | G4: Overskrift
B5: Indtægtsført bevilling | G5: Overskrift
B6: Bevilling | C6: -3200 | D6: 0 | E6: 0 | F6: A | G6: 1011
B7: Indtægtsført bevilling i alt | C7: =SUM(C6) -> -3200 | D7: =SUM(D6) -> 0 | E7: =SUM(E6) -> 0 | F7: Sum1 | G7: Sum1=A
B8: Salg af varer og tjenesteydelser | C8: 0 | D8: =D9+D10 -> 0 | E8: =E9+E10 -> 0 | F8: D | G8: sum af eksternt og internt salg
B9: Eksternt salg af varer og tjenesteydelser | C9: 0 | D9: 0 | E9: 0 | G9: 1110-1180
B10: Internt statsligt salg af varer og tjenesteydelser | C10: 0 | D10: 0 | E10: 0 | G10: 12.11,12.12,12.15
B11: Tilskud til egen drift | C11: -260 | D11: 0 | E11: 0 | F11: E | G11: 3115-3155, 3210-3220, 3410
B12: Gebyrer | C12: 0 | D12: 0 | E12: 0 | F12: F | G12: 1311
B13: Ordinære driftsindtægter i alt | C13: =SUM(C7+C8+C11+C12) -> -3460 | D13: =SUM(D7+D8+D11+D12) -> 0 | E13: =SUM(E7+E8+E11+E12) -> 0 | F13: Sum2 | G13: Sum2=Sum1+D+E+F
B14: Ordinære driftsomkostninger | G14: Overskrift
B15: Ændring i lagre | C15: 0 | D15: 0 | E15: 0 | F15: H | G15: 1511-1515
B16: Forbrugsomkostninger | G16: Overskrift
B17: Husleje | C17: 106 | D17: 0 | E17: 0 | F17: I | G17: 1610-1630
B18: Forbrugsomkostninger i alt | C18: =SUM(C14:C17) -> 106 | D18: =D17 -> 0 | E18: =E17 -> 0 | F18: Sum3 | G18: Sum3=I | I18: Tabel 06 Resultatopgørelse
B19: Personaleomkostninger | G19: Overskrift | I19: Virksomhed / Resultat af ordinær drift / IndtægterOgOmkostninger / Subtotal på andet niveau / Resultatopgørelse | J19: Beløbstype | K19: Regnskab til og med senest afsluttede periode (12) | L19: Regnskab indeværende periode (Periode: 13) | M19: Regnskab år til dato
B20: Lønninger | C20: 1693.5 | D20: 0 | E20: 0 | F20: K | G20: 1805-1868, 1920 | I20: I alt | K20: -137652.64 | L20: 0 | M20: -137652.64
B21: Andre personaleomkostninger | C21: 24 | D21: 0 | E21: 0 | F21: L | G21: 1871-1878, 4423-4425 | I21: 11887252 Kgl. Akademi for de Skønne Kunster | K21: -137652.64 | L21: 0 | M21: -137652.64
B22: Pension | C22: 242.6 | D22: 0 | E22: 0 | F22: M | G22: 1881-1883, 4421 | I22: Resultat af ordinær drift | K22: -140270 | L22: 0 | M22: -140270
B23: Lønrefusion | C23: 0 | D23: 0 | E23: 0 | F23: N | G23: 1887-1892 | I23: Ordinære Driftsindtægter i alt | K23: -3100000 | L23: 0 | M23: -3100000
B24: Personaleomkostninger i alt | C24: =SUM(C20:C23) -> 1960.1 | D24: =SUM(D20:D23) -> 0 | E24: =SUM(E20:E23) -> 0 | F24: Sum4 | G24: Sum4=K+L+M+N | I24: Indtægtsført bevilling i alt | K24: -3100000 | L24: 0 | M24: -3100000
B25: Af- og nedskrivninger | C25: 27.7 | D25: 0 | E25: 0 | F25: O | G25: 2010-2050 | I25: Bevilling | K25: -3100000 | L25: 0 | M25: -3100000
B26: Internt køb af varer og tjenesteydelser | C26: 367.4 | D26: 0 | E26: 0 | F26: P | G26: 17.11,17.12,17.15 | I26: Ordinære Driftsomkostninger i alt | K26: 2959730 | L26: 0 | M26: 2959730
B27: Andre ordinære driftsomkostninger | C27: 1057.1 | D27: 0 | E27: 0 | F27: Q | G27: 1940, 2205-2280, 4110-4195, 4210-4220, 4531-4535 | I27: Forbrugsomkostninger i alt | K27: 107060 | L27: 0 | M27: 107060
B28: Ordinære driftsomkostninger i alt | C28: =C15+C18+C24+C25+C26+C27 -> 3518.3 | D28: =D15+D18+D24+D25+D26+D27 -> 0 | E28: =E15+E18+E24+E25+E26+E27 -> 0 | F28: Sum5 | G28: Sum5=h+sum3+sum4+P+Q | I28: Husleje | K28: 107060 | L28: 0 | M28: 107060
B29: Resultat af ordinær drift | C29: =C13+C28 -> 58.3 | D29: =D13+D28 -> 0 | E29: =E13+E28 -> 0 | F29: Sum6 | G29: Sum6=Sum2+Sum5 | I29: Personaleomkostninger i alt | K29: 1943217.59 | L29: 0 | M29: 1943217.59
B30: Andre driftsposter | G30: Overskrift | I30: Lønninger | K30: 1677861.81 | L30: 0 | M30: 1677861.81
B31: Andre driftsindtægter | C31: -5.2 | D31: 0 | E31: 0 | F31: R | G31: 2110-2140, 2190, 3003-3097, 3310 | I31: Andre personaleomkostninger | K31: 24000 | L31: 0 | M31: 24000
B32: Andre driftsomkostninger | C32: 0 | D32: 0 | E32: 0 | F32: S | G32: 2290, 22.94, 2295, 4310, 44.26, 44.27, 4641-4655 | I32: Pension | K32: 241355.78 | L32: 0 | M32: 241355.78
B33: Resultat før finansielle poster | C33: =C29+C31+C32 -> 53.1 | D33: =D29+D31+D32 -> 0 | E33: =E29+E31+E32 -> 0 | F33: Sum7 | G33: Sum7=Sum6+Sum5 | I33: Årets af- og nedskrivninger | K33: 27704.66 | L33: 0 | M33: 27704.66
B34: Finansielle poster | G34: Overskrift | I34: Af- og nedskrivninger | K34: 27704.66 | L34: 0 | M34: 27704.66
B35: Finansielle indtægter | C35: 0 | D35: 0 | E35: 0 | F35: T | G35: 2502-2594 | I35: Andre ordinære driftsomkostninger | K35: 507732.61 | L35: 0 | M35: 507732.61
B36: Finansielle omkostninger | C36: 3.9 | D36: 0 | E36: 0 | F36: U | G36: 2291, 2602-2694 | I36: Andre ordinære driftsomkostninger | K36: 507732.61 | L36: 0 | M36: 507732.61
B37: Resultat før ekstraordinære poster | C37: =C33+C35+C36 -> 57 | D37: =D33+D35+D36 -> 0 | E37: =E33+E35+E36 -> 0 | F37: Sum8 | G37: Sum8=sum7+T+U | I37: Internt køb af varer og tjenesteydelser | K37: 374015.14 | L37: 0 | M37: 374015.14
B38: Ekstraordinære poster | G38: Overskrift | I38: Internt køb af varer og tjnesteydelser | K38: 374015.14 | L38: 0 | M38: 374015.14
B39: Ekstraordinære indtægter | C39: 0 | D39: 0 | E39: 0 | F39: V | G39: 2805 | I39: Øvrige | K39: 2617.36 | L39: 0 | M39: 2617.36
B40: Ekstraordinære omkostninger | C40: 0 | D40: 0 | E40: 0 | F40: X | G40: 2905 | I40: Øvrige | K40: 2617.36 | L40: 0 | M40: 2617.36
B41: Årets resultat | C41: =C37+C39+C40 -> 57 | D41: =D37+D39+D40 -> 0 | E41: =E37+E39+E40 -> 0 | F41: Sum9 | G41: Sum9=Sum8+V+X | I41: Øvrige | K41: 2617.36 | L41: 0 | M41: 2617.36
I42: Andre driftsindtægter | K42: 0 | L42: 0 | M42: 0
I43: Andre driftsomkostninger | K43: 204.03 | L43: 0 | M43: 204.03
I44: Finansielle omkostninger | K44: 2413.33 | L44: 0 | M44: 2413.33
I45: Øvrige | K45: 0 | L45: 0 | M45: 0

Sheet Tabel 7. Resultatdisp
A1: Tabel 7. Resultatdisponering
A2: ='Start her!'!E41&", løbende priser" -> 1000, løbende priser | C2: 2020 | D2: VEJLEDNING TIL INDTASTNING - tal referer til kravspecifikation 2018
A3: Note: | B3: Disponeret til bortfald | C3: ='Tabel 9. Egenkapital'!D18 -> 0 | D3: 7311
B4: Disponeret til reserveret egenkapital | C4: ='Tabel 9. Egenkapital'!D13 -> 0 | D4: 7211
B5: Disponeret udbytte til statskassen | C5: ='Tabel 9. Egenkapital'!D19 -> 0 | D5: 7350
B6: Disponeret til overført overskud | C6: ='Tabel 9. Egenkapital'!D17 -> 0 | D6: 7406, 7407, 7412, 7413
A8: * | B8: Fordeling af årets resultat | C8: =-'Tabel 6. Resultatopgørelse'!D41 -> 0
B9: Fordelt i tabel 6 | C9: =C3+C4+C5+C6 -> 0
B10: Kontrol | C10: =C8-C9 -> 0
D16: Tabel 07 Resultatdisponering
D17: Beløbstype | E17: Virksomhed | F17: 11887252 Kgl. Akademi for de Skønne Kunster
D18: Årets resultat til disponering | F18: 137652.64
D19: Disponeret til bortfald | F19: 0
D20: Disponeret til udbytte til statskassen | F20: 0
D21: Disponeret til overført overskud | F21: 137652.64
D22: Kontrol (skal være lig 0) | F22: 0

Sheet Tabel 8. Balancen
A1: Tabel 8: Balancen
A3: NB: Der skal kun indtastes tal i de turkise celler. For så vidt angår regnskabstal dannes balancen ved at udfylde de obligatoriske noter og indtaste tal. I arket 'supplerende noter' kan man udarbejde tabeller til mellemregninger vedr. de balanceposter ultimo året, der ikke er omfattet af en obligatorisk note. Denne tabelskabelon kan endvidere anvendes til at opstille yderligere noter til balancen, skulle dette være nødvendigt. Der skal ikke indtastes tal i de grå celler. Alle tal indtastes fortegnsneutralt (dvs. som positive tal). | H3: Tabel 8. Balance
A4: ="Aktiver "&'Start her!'!E41 -> Aktiver 1000 | C4: R-1 | D4: R-året | E4: FORMEL | F4: VEJLEDNING TIL INDTASTNING - Tal refererer til kravspecifikationen fra 2018 | H4: =A4 -> Aktiver 1000 | J4: 2019 | K4: 2020 | L4: Passiver | N4: =J4 -> 2019 | O4: =K4 -> 2020
A5: Note: | H5: =A5 -> Note: | L5: =A5 -> Note:
B6: Anlægsaktiver | I6: Anlægsaktiver: | M6: =B39 -> Egenkapital
A7: 1 | B7: Immaterielle anlægsaktiver | F7: Overskrift. Til de immaterielle anlægsaktiver knyttes en obligatorisk note 1, der beskriver bevægelsen i året. Ved at udfylde noten bliver regnskabskolonnen for R-året automatisk udfyldt. | H7: =A7 -> 1 | I7: Immaterielle anlægsaktiver | M7: Reguleret egenkapital (startkapital) | N7: =C40 -> 0 | O7: =D40 -> 0 | W7: Tabel 08 Balancen
B8: Færdiggjorte udviklingsprojekter | C8: 0 | D8: ='Tabel 13 og frem (noter og bil)'!C17 -> 0 | E8: A | F8: 5012-5017 | I8: =B8 -> Færdiggjorte udviklingsprojekter | J8: ='[2]Tabel 13 og frem (noter og bil)'!I15 -> 0 | K8: =D8 -> 0 | M8: Opskrivninger | N8: 0 | O8: 0 | W8: Virksomhed / Bogføringskreds / Niveau 1 / Niveau 2 / Niveau 3 / Niveau4 | X8: Beløbstype | Y8: Primo 2020 (incl. primokorrektioner) | Z8: Bevægelser 202001 - 202013 | AA8: Ultimo 2020
B9: Erhvervede koncenssioner, patenter, licenser m.v. | C9: 0 | D9: ='Tabel 13 og frem (noter og bil)'!D17 -> 0 | E9: B | F9: 5032-5037 | I9: =B9 -> Erhvervede koncenssioner, patenter, licenser m.v. | J9: ='[2]Tabel 13 og frem (noter og bil)'!J15 -> 0 | K9: =D9 -> 0 | M9: Reserveret egenkapital | N9: 0 | O9: 0 | W9: I alt | Y9: 0 | Z9: 0 | AA9: 0
B10: Udviklingsprojekter under opførelse | C10: 0 | D10: ='Tabel 13 og frem (noter og bil)'!C29 -> 0 | E10: C | F10: 5052-5054 | I10: =B10 -> Udviklingsprojekter under opførelse | J10: ='[2]Tabel 13 og frem (noter og bil)'!I29 -> 0 | K10: =D10 -> 0 | M10: Bortfald og kontoændringer | N10: 0 | O10: 0 | W10: 11887252 Kgl. Akademi for de Skønne Kunster | Y10: 0 | Z10: 0 | AA10: 0
B11: Immaterielle anlægsaktiver i alt | C11: =SUM(C8:C10) -> 0 | D11: =SUM(D8:D10) -> 0 | E11: Sum1 | F11: Sum1 = A + B + C | I11: Immaterielle anlægsaktiver i alt | J11: =SUM(J8:J10) -> 0 | K11: =D11 -> 0 | M11: Udbytte til staten | N11: 0 | O11: 0 | W11: 30251 Det Kgl. Akademi for de Skønne Kunster | Y11: 0 | Z11: 0 | AA11: 0
A12: 2 | B12: Materielle anlægsaktiver | F12: Overskrift. Til de materielle anlægsaktiver knyttes en obligatorisk note 2, der beskriver bevægelsen i året. Ved at udfylde noten bliver regnskabskolonnen for R-året automatisk udfyldt. | H12: =A12 -> 2 | I12: Materielle anlægsaktiver | M12: Overført overskud | N12: 0 | O12: 0 | W12: Aktiver | Y12: 1096117.46 | Z12: 133778.93 | AA12: 1229896.39
B13: Grunde, arealer og bygninger | C13: 0 | D13: ='Tabel 13 og frem (noter og bil)'!C44 -> 0 | E13: D | F13: 5112-5117, 5132-5138 | I13: Grunde, arealer og bygninger | J13: ='[2]Tabel 13 og frem (noter og bil)'!I44 -> 0 | K13: =D13 -> 0 | M13: Egenkapital i alt | N13: 0 | O13: 0 | W13: Anlægsaktiver | Y13: 91556.99 | Z13: -27704.66 | AA13: 63852.33
B14: Infrastruktur | C14: 0 | D14: ='Tabel 13 og frem (noter og bil)'!D44 -> 0 | E14: E | F14: 5142-5147 | I14: Infrastruktur | J14: ='[2]Tabel 13 og frem (noter og bil)'!J44 -> 0 | K14: 0 | M14: =B49 -> Hensatte forpligtelser | N14: =C49 -> 0 | O14: =D49 -> 0 | W14: Immaterielle anlægsaktiver | Y14: 41556.99 | Z14: -27704.66 | AA14: 13852.33
B15: Transportmateriel | C15: 0 | D15: ='Tabel 13 og frem (noter og bil)'!F44 -> 0 | E15: F | F15: 5152-5157 | I15: Transportmateriel | J15: ='[2]Tabel 13 og frem (noter og bil)'!L44 -> 0 | K15: 0 | W15: Færdiggjorte udviklingsprojekter | Y15: 41556.99 | Z15: -27704.66 | AA15: 13852.33
B16: Produktionsanlæg og maskiner | C16: 0 | D16: ='Tabel 13 og frem (noter og bil)'!E44 -> 0 | E16: G | F16: 5162-5167 | I16: Produktionsanlæg og maskiner | J16: ='[2]Tabel 13 og frem (noter og bil)'!K44 -> 0 | K16: 0 | M16: =B52 -> Langfristede gældsposter | W16: Finansielle anlægsaktiver | Y16: 50000 | Z16: 0 | AA16: 50000
B17: Inventar og IT-udstyr | C17: 0 | D17: ='Tabel 13 og frem (noter og bil)'!G44 -> 0 | E17: H | F17: 5172-5177, 5182-5187 | I17: Inventar og IT-udstyr | J17: ='[2]Tabel 13 og frem (noter og bil)'!M44 -> 0 | K17: 0 | M17: FF4 Langfristet gæld | N17: =C53 -> 0 | O17: =D53 -> 0 | W17: Statsforskrivning | Y17: 50000 | Z17: 0 | AA17: 50000
B18: Igangværende arbejder for egen regning | C18: 0 | D18: ='Tabel 13 og frem (noter og bil)'!C58 -> 0 | E18: I | F18: 5122-5128 | I18: Igangværende arbejder for egen regning | J18: ='[2]Tabel 13 og frem (noter og bil)'!I58 -> 0 | K18: 0 | M18: Donationer | N18: 0 | O18: =D54 -> 0 | W18: Omsætningsaktiver | Y18: 1004560.47 | Z18: 161483.59 | AA18: 1166044.06
B19: Materielle anlægsaktiver i alt | C19: =SUM(C13:C18) -> 0 | D19: =SUM(D13:D18) -> 0 | E19: Sum2 | F19: Sum2 = D + E + F + G + H + I | I19: Materielle anlægsaktiver i alt | J19: =SUM(J13:J18) -> 0 | K19: 0 | M19: Prioritets gæld | N19: 0 | O19: =D55 -> 0 | W19: Omsætningsaktiver (ekskl. likvider) | Y19: 155379.48 | Z19: 133607.09 | AA19: 288986.57
B20: Statsforskrivning | C20: 0 | D20: 0 | E20: J | F20: 5317 | I20: =B20 -> Statsforskrivning | J20: 50 | K20: 0 | M20: Anden langfristet gæld | N20: 0 | O20: =D56 -> 0 | W20: Tilgodehavender | Y20: 155379.48 | Z20: 133607.09 | AA20: 288986.57
B21: Øvrige finansielle anlægsaktiver | C21: 0 | D21: 0 | E21: K | F21: 5416-5424, 5512, 55.13, 55.14, 5518, 55.19 | I21: =B21 -> Øvrige finansielle anlægsaktiver | J21: 0 | K21: 0 | M21: Langfristet gæld i alt | N21: 0 | O21: =D57 -> 0 | W21: Likvide beholdning | Y21: 849180.99 | Z21: 27876.5 | AA21: 877057.49
B22: Finansielle anlægsaktiver i alt | C22: =SUM(C20:C21) -> 0 | D22: =SUM(D20:D21) -> 0 | E22: Sum3 | F22: Sum3 = J + K | I22: =B22 -> Finansielle anlægsaktiver i alt | J22: =SUM(J20:J21) -> 50 | K22: 0 | W22: FF5 Uforrentet konto | Y22: 630763.02 | Z22: 211491.81 | AA22: 842254.83
B23: Anlægsaktiver i alt | C23: =C11+C19+C22 -> 0 | D23: =D11+D19+D22 -> 0 | E23: Sum4 | F23: Sum4 = Sum1 + Sum2 + Sum3 | I23: Anlægsaktiver i alt | J23: =J11+J19+J22 -> 50 | K23: 0 | W23: FF7 Finansieringskonto | Y23: 218417.97 | Z23: -183615.31 | AA23: 34802.66
B24: Omsætningsaktiver | F24: Overskrift | I24: =B24 -> Omsætningsaktiver | W24: Andre likvider | Y24: 0 | Z24: 0 | AA24: 0
B25: Varebeholdning | C25: 0 | D25: 0 | E25: L | F25: 6011-6015, 6031-6035, 6070-6090 | I25: =B25 -> Varebeholdning | J25: 0 | K25: =D25 -> 0 | M25: =B60 -> Kortfristede gældsposter | W25: Passiver | Y25: -1096117.46 | Z25: -133778.93 | AA25: -1229896.39
B26: Tilgodehavender | C26: 0 | D26: 0 | E26: M | F26: 6102-6174, 6187-6188,6195-6197 | I26: =B26 -> Tilgodehavender | J26: 132.6 | K26: =D26 -> 0 | M26: =B61 -> Leverandører af vare og tjenesteydelser | N26: =C61 -> 0 | O26: =D61 -> 0 | W26: Egenkapital | Y26: -341172.58 | Z26: -137652.64 | AA26: -478825.22
B27: Periodeafgrænsningsposter | C27: 0 | D27: 0 | E27: N | F27: 6190, 6191 | I27: =B27 -> Periodeafgrænsningsposter | J27: 0 | K27: =D27 -> 0 | W27: Reguleret egenkapital (startkapital) | Y27: -50000 | Z27: 0 | AA27: -50000
B28: Værdipapirer | C28: 0 | D28: 0 | E28: O | F28: 5812-5844, 5902-5904 | I28: Værdipapirer | J28: 0 | K28: 0 | M28: =B62 -> Anden kortfristet gæld | N28: =C62 -> 0 | O28: =D62 -> 0 | W28: Reguleret egenkapital (startkapital) | Y28: -50000 | Z28: 0 | AA28: -50000
B29: Likvide beholdninger | F29: Overskrift. Evt. negative poster optages på passivsiden under anden kortfristet gæld. | I29: Likvide beholdninger | J29: 0 | K29: 0 | M29: =B63 -> Skyldige feriepenge | N29: 0 | O29: =D63 -> 0 | W29: Overført overskud | Y29: -291172.58 | Z29: -137652.64 | AA29: -428825.22
B30: FF5 Uforrentet konto | C30: 0 | D30: 0 | E30: P | F30: 6211 | I30: FF5 Uforrentet konto | J30: 630.8 | K30: 0 | W30: Overført overskud | Y30: -291172.58 | Z30: -137652.64 | AA30: -428825.22
B31: FF7 Finansieringskonto | C31: 0 | D31: 0 | E31: Q | F31: 6231 | I31: FF7 Finansieringskonto | J31: 218.4 | K31: 0 | M31: =B65 -> Igangværende arbejder for fremmed regning, forpligtelser | N31: 0 | O31: =D65 -> 0 | W31: Gældsforpligtelser | Y31: -754944.88 | Z31: 3873.71 | AA31: -751071.17
B32: Andre likvider | C32: 0 | D32: 0 | E32: R | F32: 6331-6334, 6341-6348, 6361, 6365, 6367, 6371-6393 | I32: Andre likvider | J32: 0 | K32: 0 | M32: =B66 -> Periodeafgrænsningsposter, forpligtelser | N32: 0 | O32: =D66 -> 0 | W32: Langfristede gældsforpligtelser | Y32: -48483.15 | Z32: 27704.66 | AA32: -20778.49
B33: Likvide beholdninger i alt | C33: =SUM(C30:C32) -> 0 | D33: =SUM(D30:D32) -> 0 | E33: Sum5 | F33: Sum5 = P + Q + R | I33: Likvide beholdninger i alt | J33: =SUM(J30:J32) -> 849.2 | K33: 0 | M33: =B67 -> Kortfristet gæld i alt | N33: 0 | O33: =D67 -> 0 | W33: FF4 Langfristet gæld | Y33: -48483.15 | Z33: 27704.66 | AA33: -20778.49
B34: Omsætningsaktiver i alt | C34: =SUM(C25:C28)+C33 -> 0 | D34: =SUM(D25:D28)+D33 -> 0 | E34: Sum6 | F34: Sum6 = L + M + N + O + Sum5 | I34: Omsætningsaktiver i alt | J34: =SUM(J25:J28)+J33 -> 981.8 | K34: =D34 -> 0 | M34: =B68 -> Gældsforpligtelser i alt | N34: 0 | O34: =D68 -> 0 | W34: Kortfristede gældsforpligtelser | Y34: -706461.73 | Z34: -23830.95 | AA34: -730292.68
B35: Aktiver i alt | C35: =C23+C34 -> 0 | D35: =D23+D34 -> 0 | E35: AKTIVER | F35: AKTIVER = Sum4 + Sum6 | I35: Aktiver i alt | J35: =J23+J34 -> 1031.8 | K35: =D35 -> 0 | M35: =B69 -> Passiver i alt | N35: 0 | O35: =D69 -> 0 | W35: Leverandører af vare og tjenesteydelser | Y35: -319495.02 | Z35: 193626.62 | AA35: -125868.4
W36: Anden kortfristet gæld | Y36: -131604.38 | Z36: 108417.46 | AA36: -23186.92
C37: Primo | D37: Ultimo | E37: FORMEL | F37: VEJLEDNING TIL INDTASTNING | W37: Skyldige feriepenge | Y37: -255362.33 | Z37: 177746.35 | AA37: -77615.98
B38: ="Passiver "&'Start her!'!E41 -> Passiver 1000 | C38: =C5 -> 0 | D38: =D5 -> 0 | W38: Igangv. arbejder for fremmed regning - forpl. | Y38: 0 | Z38: -350000 | AA38: -350000
B39: Egenkapital | F39: Til egenkapitalen knyttes en uddybende tabel (tabel 8) , der beskriver bevægelsen i året. | W39: Periodeafgrænsningsposter, forpligtelser | Y39: 0 | Z39: 0 | AA39: 0
B40: Reguleret egenkapital (startkapital) | C40: 0 | D40: 0 | E40: R | F40: 7012 | W40: Skyldige indefrosne feriepenge | Y40: 0 | Z40: -153621.38 | AA40: -153621.38
B41: Opskrivninger | C41: 0 | D41: 0 | E41: S | F41: 7102-7124
B42: Reserveret egenkapital | C42: 0 | D42: 0 | E42: T | F42: 7211
B43: Bortfald og kontoændringer | C43: 0 | D43: 0 | E43: T1 | F43: 7311, 7314,7315,7412,7413,7414 og 7415
B44: Udbytte til staten | C44: 0 | D44: 0 | E44: T2 | F44: 7350
B45: Overført overskud | C45: 0 | D45: 0 | E45: U | F45: Standardkonti: 10-20, 25-34, 41-46 Regnskabskonti: 2100-2190,2200-2291, 2295, 2681, 7403, 7406, 7407 og 7411
B46: Egenkapital i alt | C46: =SUM(C40:C45) -> 0 | D46: =SUM(D40:D45) -> 0 | E46: Sum7 | F46: Sum7 = R + S + T + T1 + T2 + U
B49: Hensatte forpligtelser | C49: 0 | D49: 0 | E49: V | F49: 7611-7617
B52: Langfristede gældsposter | F52: Overskrift
B53: FF4 Langfristet gæld | C53: 0 | D53: 0 | E53: W | F53: 8621 og 8641
B54: Donationer | C54: 0 | D54: 0 | E54: Æ | F54: 8730, 8744 og 8748
B55: Prioritets gæld | C55: 0 | D55: 0 | E55: Y | F55: 8412, 8422, 8432, 8442, 8502
B56: Anden langfristet gæld | C56: 0 | D56: 0 | E56: Z | F56: 8414, 84.20, 8424, 8434, 8444, 8504, 85.20
B57: Langfristet gæld i alt | C57: =SUM(C53:C56) -> 0 | D57: =SUM(D53:D56) -> 0 | E57: Sum8 | F57: Sum8 = W + X + Y + Z + Æ
B60: Kortfristede gældsposter | F60: Overskrift. Evt. positive poster optages på aktivsiden under likvide beholdninger.
B61: Leverandører af vare og tjenesteydelser | C61: 0 | D61: 0 | E61: Ø | F61: 9511-9520
B62: Anden kortfristet gæld | C62: 0 | D62: 0 | E62: Å | F62: 7795, 77.97, 9705-9772, 9778, 9781-9794, 9870-9893
B63: Skyldige feriepenge | C63: 0 | D63: 0 | E63: AA | F63: 9410 0g 9411
B64: Reserveret bevilling | C64: 0 | D64: 0 | E64: AC | F64: 7511, 7512, 7513, 7514 og 7515
B65: Igangværende arbejder for fremmed regning, forpligtelser | C65: 0 | D65: 0 | E65: AB | F65: 9341-9345
B66: Periodeafgrænsningsposter, forpligtelser | C66: 0 | D66: 0 | E66: AD | F66: 9690
B67: Kortfristet gæld i alt | C67: =SUM(C61:C66) -> 0 | D67: =SUM(D61:D66) -> 0 | E67: Sum9 | F67: Sum9 = Ø + Å + AA + AB + AC + AD
B68: Gældsforpligtelser i alt | C68: =C57+C67 -> 0 | D68: =D57+D67 -> 0 | E68: Sum10 | F68: Sum10 = Sum8 + Sum9
B69: Passiver i alt | C69: =C46+C49+C68 -> 0 | D69: =D46+D49+D68 -> 0 | E69: PASSIVER | F69: PASSIVER = Sum7 + V + Sum10

Sheet Tabel 9. Egenkapital
A1: Tabel 9. Egenkapitalforklaring
E2: FORMEL | F2: VEJLEDNING TIL INDTASTNING tal referer til kravspecifikationerne 2018
A3: note: | B3: ='Start her!'!E41&", løbende priser" -> 1000, løbende priser | C3: 2019 | D3: 2020
B4: Egenkapital primo R-året | C4: 0 | D4: 0
B5: Startkapital primo | C5: 50 | D5: 0 | E5: A | F5: 7012
B6: +Ændring i startkapital | C6: 0 | D6: 0 | E6: B | F6: 7012
B7: Startkapital ultimo | C7: =SUM(C5:C6) -> 50 | D7: =SUM(D5:D6) -> 0 | E7: Startkapital ultimo | F7: 7012
B8: Opskrivninger primo | C8: 0 | D8: 0 | E8: C | F8: 7102-7124
B9: +Ændringer i opskrivninger | C9: 0 | D9: 0 | E9: D | F9: 7102-7124
B10: Opskrivninger ultimo | C10: =SUM(C8:C9) -> 0 | D10: =SUM(D8:D9) -> 0 | E10: Opskrivninger ultimo | F10: 7102-7124
B11: Reserveret egenkapital primo | C11: 0 | D11: 0 | E11: E | F11: 7211
B12: +Ændring i reserveret egenkapital | C12: 0 | D12: 0 | E12: F | F12: 7211
B13: Reserveret egenkapital ultimo | C13: =SUM(C11:C12) -> 0 | D13: =SUM(D11:D12) -> 0 | E13: Reserveret egenkapital ultiomo | F13: 7211
B14: Overført overskud primo | C14: 348.2 | D14: 0 | E14: G | F14: 7403, 7406, 7407, 7411
B15: +Primoregulering/flytning mellem bogføringskredse | C15: 0 | D15: 0 | E15: H | F15: 7412
B16: +Regulering af det overførte overskud | C16: 0 | D16: 0 | E16: I | F16: 7413
B17: +Overført fra årets resultat | C17: -57 | D17: 0 | E17: J | F17: Standardkonti: 10-20, 25-30, 32-34, 41-46 Regnskabskonti: 2100-2190, 2200-2291, 22.94, 2295, 3115-3155
B18: - Bortfald af årets resultat | C18: 0 | D18: 0 | E18: K | F18: 7311
B19: - Udbytte til staten | C19: 0 | D19: 0 | E19: L | F19: 7350
B20: Overført overskud ultimo | C20: =SUM(C14:C19) -> 291.2 | D20: =SUM(D14:D19) -> 0 | E20: overført overskud ultimo | F20: 7403, 7406, 7407,
B21: Egenkapital ultimo | C21: =SUM(C20,C13,C10,C7) -> 341.2 | D21: =SUM(D20,D13,D10,D7) -> 0 | F21: SUM = Startkapital ultimo + opskrivninger ultimo + reserveret egenkapital ultimo + overført overskudultimo
B22: *Egenkapital ultimo jf. balancen (tabel 8) | D22: 0 | E22: *se forklaring | F22: Standardkonti: 70, 71, 72, 73 og 74
A23: * | B23: Til fordeling af overført overskud (fra balance) | D23: ='Tabel 8. Balancen'!D45 -> 0
B24: Fordelt i tabel 8 | D24: =D14+D15+D16+D17+D19+D18 -> 0
B25: Kontrol | D25: =D23-D24 -> 0
F28: Tabel 09 Egenkapitalforklaring
F29: Virksomhed / Beløbstype | G29: Finansår | H29: 2020
F30: 11887252 Kgl. Akademi for de Skønne Kunster | H30: -2256473.46
F31: Egenkapital Primo | H31: -341172.58
F32: Primoværdi for reguleret egenkapital | H32: -50000
F33: Ændringer i reguleret egenkapital | H33: 0
F34: Ultimoværdi for reguleret egenkapital | H34: -50000
F35: Primoværdi for opskrivninger | H35: 0
F36: Ændringer i opskrivninger | H36: 0
F37: Ultimoværdi for opskrivninger | H37: 0
F38: Primoværdi for overført overskud | H38: -291172.58
F39: Ændringer overført overskud ifm. kontoændringer | H39: 0
F40: Bortfald af eksisterende overførte overskud | H40: 0
F41: Årets resultat | H41: -137652.64
F42: Årets bortfald | H42: 0
F43: Udbytte til statskassen | H43: 0
F44: Ultimoværdi for overført overskud | H44: -428825.22
F45: Egenkapital ultimo | H45: -478825.22
F46: Egenkapital jf. balancen | H46: -478825.22
F47: Egenkapital balancen minus egenkapital i egenkapitalforklaring | H47: 0

Sheet Tabel 10. Låneramme
A2: Tabel 10. Udnyttelse af låneramme
A3: ='Start her!'!E41&", løbende priser" -> 1000, løbende priser | B3: 2020
A4: Sum af imm. og mat. anlægsaktiver (undt. donationer) pr. 31. december 2018 | B4: ='Tabel 8. Balancen'!D11+'Tabel 8. Balancen'!D19-'Tabel 8. Balancen'!D54 -> 0
A5: Låneramme pr. 31. december R-året | B5: 0
A6: Udnyttelsesgrad i procent | B6: =IF(B5=0, "-", B4/B5) -> -
A11: Tabel 10 Udnyttelse af låneramme
A12: Virksomhed / Ministeransvarsområde / Virksomhedsbærende hovedkonto | B12: Beløbstype | C12: Låneramme | D12: Trækket på lånerammen - til og med periode: 13 2020 | E12: Udnyttelsesgrad af låneramme i pct.
A13: I alt | C13: 300000 | D13: 13852.33 | E13: 4.61744333
A14: 11887252 Kgl. Akademi for de Skønne Kunster | C14: 300000 | D14: 13852.33 | E14: 4.61744333
A15: 21 Kulturministeriet | C15: 300000 | D15: 13852.33 | E15: 4.61744333
A16: 212121 Det Kongelige Akademi for de Skønne Kunster | C16: 300000 | D16: 13852.33 | E16: 4.61744333

Sheet Tabel 11. Lønsum
A2: Tabel 11. Opfølgning på lønsumsloft § 21.21.21
A3: ='Start her!'!E41&", løbende priser" -> 1000, løbende priser | B3: 2020
A4: Lønsumsloft FL | B4: 0
A5: Lønsumsloft inkl. TB/aktstykker | B5: 0
A6: Lønforbrug under lønsumsloft | B6: 0
A7: Difference (mindreforbrug) | B7: =B5-B6 -> 0
A8: Akkumuleret opsparing ultimo forrige år | B8: 0
A9: Akkumuleret opsparing ultimo indeværende år | B9: =B7+B8 -> 0
A13: Tabel 11 Opfølgning på lønsumsloft
A14: Virksomhed / Hovedkonto | B14: Beløbstype | C14: Lønsumsloft på FL (mio. kr.) | D14: Lønsumsloft inkl. TB (mio. kr.) | E14: Lønforbrug under lønsumsloft (mio. kr.) | F14: Difference (- =merforbrug) (mio. kr.) | G14: Akk. opsparing ultimo 2019 (mio. kr.) | H14: Akk. opsparing ultimo 2020 (mio. kr.)
A15: I alt | C15: 2000000 | D15: 2000000 | E15: 1919217.59 | F15: 80782.41 | G15: 1325000 | H15: 1405782.41
A16: 11887252 Kgl. Akademi for de Skønne Kunster | C16: 2000000 | D16: 2000000 | E16: 1919217.59 | F16: 80782.41 | G16: 1325000 | H16: 1405782.41
A17: 212121 Det Kongelige Akademi for de Skønne Kunster | C17: 2000000 | D17: 2000000 | E17: 1919217.59 | F17: 80782.41 | G17: 1325000 | H17: 1405782.41

Sheet Tabel 12. Bev.regnsk.
A1: Tabel 12. Bevillingsregnskab
A2: Hovedkonto | B2: Navn | C2: Bevillingstype | D2: Mio kr. | E2: Bevilling | F2: Regnskab | G2: Afvigelse | H2: Videreførelse Ultimo
A3: Drift
A4: xx.xx.xx | D4: Udgifter
D5: Indtægter
A6: yy.yy.yy | D6: Udgifter
D7: Indtægter
A8: Administrerede ordninger
A9: vv.vv.vv | D9: Udgifter
D10: Indtægter
A11: zz.zz.zz | D11: Udgifter
D12: Indtægter
A13: Anlæg
A14: aa.aa.aa | D14: Udgifter
D15: Indtægter
A16: bb.bb.bb | D16: Udgifter
D17: Indtægter
A20: Kontrolberegning | H20: =#REF!-#REF! -> 
A23: Tabel 12 Bevillingsregnskab
A24: Virksomhed / Drift, Administrerede ordninger og anlæg / Bevillingstype / Hovedkonto / Udgift/indtægt/balance | B24: Beløbstype | C24: Bevillinger i alt (mio. kr.) | D24: Regnskab år til dato (periode: 13) (mio. kr.) | E24: Afvigelse (bevilling minus regnskab) (mio. kr.) | F24: overført overskud ultimo året (mio. kr.) | G24: Videreførelser ultimo året (mio. kr.)
A25: 11887252 Kgl. Akademi for de Skønne Kunster | C25: 3100000 | D25: 2962347.36 | E25: 137652.64 | F25: -428825.22 | G25: 0
A26: Drift | C26: 3100000 | D26: 2962347.36 | E26: 137652.64 | F26: -428825.22 | G26: 0
A27: 12 Driftsbevilling, omkostningsbaseret | C27: 3100000 | D27: 2962347.36 | E27: 137652.64 | F27: -428825.22 | G27: 0
A28: 212121 Det Kongelige Akademi for de Skønne Kunster | C28: 3100000 | D28: 2962347.36 | E28: 137652.64 | F28: -428825.22 | G28: 0
A29: Udgiftskonto | C29: 3100000 | D29: 2962347.36 | E29: 137652.64 | F29: 0 | G29: 0
A30: Balancekonto | C30: 0 | D30: 0 | E30: 0 | F30: -428825.22 | G30: 0

Sheet Tabel 12A. Udgiftsbaserede hk
A1: Tabel 12A. Udgiftsbaserede hovedkonti (§ XX.XX.XX.)
A2: Hovedkonto | B2: Navn | C2: Bevillingstype | D2: (Mio. kr.) | E2: Bevilling | F2: Regnskab
A3: XX.XX.XX | D3: Udgifter
D4: Indtægter
A5: YY.YY.YY | D5: Udgifter

Sheet Tabel 13 og frem (noter og bil)
A1: Tabel 13-23 | R1: Udskriftsegnede noter
A5: Tabel 13 - Note 1: Immaterielle anlægsaktiver | O5: Tabel 13 - Note 1: Immaterielle anlægsaktiver
A6: ='Start her!'!E41&", løbende priser" -> 1000, løbende priser | C6: Færdiggjorte udviklings-projekter | D6: Erhvervede koncessioner, patenter, licenser mv. | E6: I alt | O6: =A6 -> 1000, løbende priser | P6: Færdiggjorte udviklings-projekter | Q6: Erhvervede koncessioner, patenter, licenser mv. | R6: I alt
A8: Primobeholdning | C8: 0 | D8: 0 | E8: =SUM(C8:D8) -> 0 | O8: =A8 -> Primobeholdning | P8: =C8 -> 0 | Q8: =D8 -> 0 | R8: =E8 -> 0
A9: Opskrivning | C9: 0 | D9: 0 | E9: =SUM(C9:D9) -> 0 | O9: Opskrivning | P9: 0 | Q9: 0 | R9: 0
A10: Kostpris pr. 1.1.20xx (før afskr.) | C10: =SUM(C8:C9) -> 0 | D10: =SUM(D8:D9) -> 0 | E10: =SUM(E8:E9) -> 0 | O10: Kostpris pr. 1.1.20xx (før afskr.) | P10: 0 | Q10: 0 | R10: 0
A11: Tilgang | C11: 0 | D11: 0 | E11: =C11+D11 -> 0 | O11: Tilgang | P11: 0 | Q11: 0 | R11: 0
A12: Afgang | C12: 0 | D12: 0 | E12: 0 | O12: Afgang | P12: 0 | Q12: 0 | R12: 0
A13: Kostpris pr. 31.12.20xx (før afskr.) | C13: =C10+C11-C12 -> 0 | D13: =D10+D11-D12 -> 0 | E13: 0 | O13: Kostpris pr. 31.12.20xx (før afskr.) | P13: 0 | Q13: 0 | R13: 0
A14: Akk. afskrivninger | C14: 0 | D14: 0 | E14: 0 | O14: Akk. afskrivninger | P14: 0 | Q14: 0 | R14: 0
A15: Akk. nedskrivninger | C15: 0 | D15: 0 | E15: 0 | O15: Akk. nedskrivninger | P15: 0 | Q15: 0 | R15: 0
A16: Akk. af- og nedskrivninger 31.12.20xx | C16: =C14+C15 -> 0 | D16: =D14+D15 -> 0 | E16: 0 | O16: Akk. af- og nedskrivninger 31.12.20xx | P16: 0 | Q16: 0 | R16: 0
A17: Regnskabsmæssig værdi pr. 31.12.20xx | C17: =C13-C16 -> 0 | D17: =D13-D16 -> 0 | E17: =E13-E16 -> 0 | O17: Regnskabsmæssig værdi pr. 31.12.20xx | P17: 0 | Q17: 0 | R17: 0
A18: Årets afskrivninger | C18: 0 | D18: 0 | E18: =C18+D18 -> 0 | G18: Tabel 13 Note 1. Immaterielle anlægsaktiver | O18: Årets afskrivninger | P18: 0 | Q18: 0 | R18: 0
A19: Årets nedskrivninger | C19: 0 | D19: 0 | E19: =C19+D19 -> 0 | G19: Virksomhed / Beløbstype | H19: Statuspost | I19: 11.00 Immaterielle anlægsaktiver | O19: Årets nedskrivninger | P19: 0 | Q19: 0 | R19: 0
A20: Årets af- og nedskrivninger | C20: =C18+C19 -> 0 | D20: =D18+D19 -> 0 | E20: =C20+D20 -> 0 | H20: Anlægsgruppe (fx inventar) | I20: Færdiggjorte udviklingsprojekter | J20: I alt | O20: Årets af- og nedskrivninger | P20: 0 | Q20: 0 | R20: 0
A21: Afskrivningsperiode/år | C21: antal år | D21: antal år | G21: 11887252 Kgl. Akademi for de Skønne Kunster | I21: -13852.33 | J21: -13852.33 | O21: Afskrivningsperiode/år | P21: antal år | Q21: =D21 -> antal år
G22: Kostpris primo | I22: 83114 | J22: 83114
C23: Udviklings-projekter under opførelse | G23: Primokorrektion år til dato (til periode: 13) | I23: 0 | J23: 0 | P23: Udviklings-projekter under opførelse
G24: Årets tilgang (periode 01-13 2020) | I24: 0 | J24: 0
A25: Primosaldo pr. 1.1 20xx | C25: ='Tabel 8. Balancen'!C10 -> 0 | G25: Årets afgang (periode 01-13 2020) | I25: 0 | J25: 0 | O25: =A25 -> Primosaldo pr. 1.1 20xx | P25: =C25 -> 0
A26: Tilgang | C26: 0 | G26: Ændringer i opskrivninger | I26: 0 | J26: 0 | O26: =A26 -> Tilgang | P26: =C26 -> 0
A27: Nedskrivninger | C27: 0 | G27: Kostpris 31. 12 202x (inkl. opskrivninger) | I27: 83114 | J27: 83114 | O27: =A27 -> Nedskrivninger | P27: =C27 -> 0
A28: Afgang | C28: 0 | G28: Akkumulerede afskrivninger | I28: -69261.67 | J28: -69261.67 | O28: =A28 -> Afgang | P28: =C28 -> 0
A29: Kostpris pr. 31.12.20xx | C29: =C25+C26-C27-C28 -> 0 | G29: Akkumulerede nedskrivninger | I29: 0 | J29: 0 | O29: =A29 -> Kostpris pr. 31.12.20xx | P29: =C29 -> 0
G30: Akkumulerede af- og nedskrivninger i alt | I30: -69261.67 | J30: -69261.67
G31: Regnskabsmæssig værdi 31.12 202x | I31: 13852.33 | J31: 13852.33
A32: Tabel 14 - Note 2: Materielle anlægsaktiver | G32: Årets afskrivninger | I32: -27704.66 | J32: -27704.66 | O32: Tabel 14 - Note 2: Materielle anlægsaktiver
A33: ='Start her!'!E41 -> 1000 | C33: Grunde, arealer og bygninger | D33: Infrastruktur | E33: Produktionsanlæg og maskiner | F33: Transportmateriel | G33: Årets nedskrivninger | I33: 0 | J33: 0 | O33: =A33 -> 1000 | P33: Grunde, arealer og bygninger | Q33: Infrastruktur | R33: Produktionsanlæg og maskiner | S33: Transportmateriel | T33: Inventar og IT-udstyr | U33: I alt
G34: Årets af- og nedskrivninger | I34: -27704.66 | J34: -27704.66
A35: Primobeholdning | C35: 0 | D35: 0 | E35: 0 | F35: 0 | G35: 0 | H35: =SUM(C35:G35) -> 0 | O35: =A35 -> Primobeholdning | P35: =C35 -> 0 | Q35: =D35 -> 0 | R35: =E35 -> 0 | S35: =F35 -> 0 | T35: =G35 -> 0 | U35: =H35 -> 0
A36: Opskrivning | C36: 0 | D36: 0 | E36: 0 | F36: 0 | G36: 0 | H36: =SUM(C36:G36) -> 0 | O36: Opskrivning | P36: 0 | Q36: 0 | R36: 0 | S36: 0 | T36: 0 | U36: 0
A37: Kostpris pr. 1.1.20xx (før afskr.) | C37: =C35+C36 -> 0 | D37: =D35+D36 -> 0 | E37: =E35+E36 -> 0 | F37: =F35+F36 -> 0 | G37: =G35+G36 -> 0 | H37: =SUM(C37:G37) -> 0 | O37: Kostpris pr. 1.1.20xx (før afskr.) | P37: 0 | Q37: 0 | R37: 0 | S37: 0 | T37: 0 | U37: 0
A38: Tilgang | C38: 0 | D38: 0 | E38: 0 | F38: 0 | G38: 0 | H38: 0 | O38: Tilgang | P38: 0 | Q38: 0 | R38: 0 | S38: 0 | T38: 0 | U38: 0
A39: Afgang | C39: 0 | D39: 0 | E39: 0 | F39: 0 | G39: 0 | H39: 0 | K39: Tabel 14 Note 2. Materielle anlægsaktiver | O39: Afgang | P39: 0 | Q39: 0 | R39: 0 | S39: 0 | T39: 0 | U39: 0
A40: Kostpris pr. 31.12.20xx (før afskr.) | C40: =C37+C38-C39 -> 0 | D40: =D37+D38-D39 -> 0 | E40: =E37+E38-E39 -> 0 | F40: =F37+F38-F39 -> 0 | G40: =G37+G38-G39 -> 0 | H40: 0 | K40: Virksomhed / Beløbstype | L40: Anlægsgruppe (fx inventar) | M40: Bygninger | N40: I alt | O40: Kostpris pr. 31.12.20xx (før afskr.) | P40: 0 | Q40: 0 | R40: 0 | S40: 0 | T40: 0 | U40: 0
A41: Akk. afskrivninger | C41: 0 | D41: 0 | E41: 0 | F41: 0 | G41: 0 | H41: 0 | K41: 11887252 Kgl. Akademi for de Skønne Kunster | M41: 0 | N41: 0 | O41: Akk. afskrivninger | P41: 0 | Q41: 0 | R41: 0 | S41: 0 | T41: 0 | U41: 0
A42: Akk. nedskrivninger | C42: 0 | D42: 0 | E42: 0 | F42: 0 | G42: 0 | H42: 0 | K42: Kostpris primo | M42: 0 | N42: 0 | O42: Akk. nedskrivninger | P42: 0 | Q42: 0 | R42: 0 | S42: 0 | T42: 0 | U42: 0
A43: Akk. af- og nedskrivninger 31.12.20xx | C43: =C41+C42 -> 0 | D43: =D41+D42 -> 0 | E43: =E41+E42 -> 0 | F43: =F41+F42 -> 0 | G43: =G41+G42 -> 0 | H43: 0 | K43: Primokorrektioner | M43: 0 | N43: 0 | O43: Akk. af- og nedskrivninger 31.12.20xx | P43: 0 | Q43: 0 | R43: 0 | S43: 0 | T43: 0 | U43: 0
A44: Regnskabsmæssig værdi pr. 31.12.20xx | C44: =C40-C43 -> 0 | D44: =D40-D43 -> 0 | E44: =E40-E43 -> 0 | F44: =F40-F43 -> 0 | G44: =G40-G43 -> 0 | H44: 0 | K44: Ændringer i opskrivninger | M44: 0 | N44: 0 | O44: Regnskabsmæssig værdi pr. 31.12.20xx | P44: 0 | Q44: 0 | R44: 0 | S44: 0 | T44: 0 | U44: 0
A45: Årets afskrivninger | C45: 0 | D45: 0 | E45: 0 | F45: 0 | G45: 0 | H45: 0 | K45: Årets tilgang (periode 01-13 2020) | M45: 0 | N45: 0 | O45: Årets afskrivninger | P45: 0 | Q45: 0 | R45: 0 | S45: 0 | T45: 0 | U45: 0
A46: Årets nedskrivninger | C46: 0 | D46: 0 | E46: 0 | F46: 0 | G46: 0 | H46: 0 | K46: Årets afgang (periode 01-13 2020) | M46: 0 | N46: 0 | O46: Årets nedskrivninger | P46: 0 | Q46: 0 | R46: 0 | S46: 0 | T46: 0 | U46: 0
A47: Årets af- og nedskrivninger | C47: =C45+C46 -> 0 | D47: =D45+D46 -> 0 | E47: =E45+E46 -> 0 | F47: =F45+F46 -> 0 | G47: =G45+G46 -> 0 | H47: 0 | K47: Kostpris ultimo 31/12 202x | M47: 0 | N47: 0 | O47: Årets af- og nedskrivninger | P47: 0 | Q47: 0 | R47: 0 | S47: 0 | T47: 0 | U47: =H46 -> 0
A48: Afskrivningsperiode/år | C48: antal år | D48: antal år | E48: antal år | F48: antal år | G48: antal år | K48: Akkumulerede afskrivninger | M48: 0 | N48: 0 | O48: Afskrivningsperiode/år | P48: antal år | Q48: antal år | R48: antal år | S48: antal år | T48: antal år
K49: Akkumulerede nedskrivninger | M49: 0 | N49: 0
K50: Akkumulerede af- og nedskrivninger 31/12 202x | M50: 0 | N50: 0
K51: Regnskabsmæssig værdi pr. 31/12 202x | M51: 0 | N51: 0
C52: I gang-værende arbejder for egen regning | K52: Årets afskrivninger | M52: 0 | N52: 0 | P52: I gang-værende arbejder for egen regning
K53: Årets nedskrivninger | M53: 0 | N53: 0
A54: Primosaldo pr. 01.01.20xx | C54: ='Tabel 8. Balancen'!C18 -> 0 | K54: Årets af- og nedskrivninger | M54: 0 | N54: 0 | O54: =A54 -> Primosaldo pr. 01.01.20xx | P54: =C54 -> 0
A55: Tilgang | C55: 0 | O55: Tilgang | P55: =C55 -> 0
A56: Nedskrivninger | C56: 0 | O56: Nedskrivninger | P56: =C56 -> 0
A57: Afgang | C57: 0 | O57: Overført til færdige materielle anlægsaktiver | P57: =C57 -> 0
A58: Kostpris pr. 31.12.20xx | C58: =C54+C55-C56-C57 -> 0 | O58: =A58 -> Kostpris pr. 31.12.20xx | P58: =C58 -> 0
A62: Tabel 14A Note 3. Hensatte forpligtelser
A63: ='Start her!'!E$41 -> 1000
A64: Hensat i 2020 til | J64: Beløb
A65: Formål 1 | J65: 0
A66: Formål 2 | J66: 0
A67: Formål 3 | J67: 0
A68: Hensættelser i alt | J68: =J65+J66+J67 -> 0
A70: Tabel 15. Sammenfatning af elementer i prisfastsættelse
C71: Ultimo | D71: Ultimo | E71: Ultimo | F71: Ultimo
A72: ="Løbende priser, "&'Start her!'!E$41 -> Løbende priser, 1000 | C72: R-3 | D72: R-2 | E72: R-1 | F72: R-året
A73: Institutionens direkte omkostninger i alt | C73: 0 | D73: 0 | E73: 0 | F73: 0
A74: Institutionens indirekte omkostninger i alt | C74: 0 | D74: 0 | E74: 0 | F74: 0
A75: Øvrige indregnede omkostninger | C75: 0 | D75: 0 | E75: 0 | F75: 0
A76: Sum | C76: 0 | D76: 0 | E76: 0 | F76: 0
A77: Indtægter i alt | C77: 0 | D77: 0 | E77: 0 | F77: 0
A80: Tabel 16. Oversigt over akkumuleret resultat af indtægtsdækket virksomhed
C81: Ultimo | D81: Ultimo | E81: Ultimo | F81: Ultimo
A82: ="Løbende priser, "&'Start her!'!E$41 -> Løbende priser, 1000 | C82: R-3 | D82: R-2 | E82: R-1 | F82: R-året
A83: Efteruddannelseskurser | C83: 0 | D83: 0 | E83: 0 | F83: 0
A84: Konsulentydelser | C84: 0 | D84: 0 | E84: 0 | F84: 0
C85: 0 | D85: 0 | E85: 0 | F85: 0
A88: Tabel 17. Oversigt over gebyrordninger med adm. fastsat takst
C89: Årets resultat
A90: ="Løbende priser, "&'Start her!'!E$41 -> Løbende priser, 1000 | C90: R-3 | D90: R-2 | E90: R-1 | F90: R-året | G90: I alt
A91: Gebyrprovenu | C91: 0 | D91: 0 | E91: 0 | F91: 0 | G91: =SUM(C91:F91) -> 0
A92: Omkostninger | C92: 0 | D92: 0 | E92: 0 | F92: 0 | G92: 0
A93: Resultat | C93: 0 | D93: 0 | E93: 0 | F93: 0 | G93: =SUM(C93:F93) -> 0
A96: Tabel 18. Oversigt over gebyrordninger med lovbestemt takst
C97: Årets resultat
A98: ="Løbende priser, "&'Start her!'!E$41 -> Løbende priser, 1000 | C98: R-3 | D98: R-2 | E98: R-1 | F98: R-året | G98: I alt
A99: Gebyrprovenu | C99: 0 | D99: 0 | E99: 0 | F99: 0 | G99: =SUM(C99:F99) -> 0
C100: 0 | D100: 0 | E100: 0 | F100: 0 | G100: =SUM(C100:F100) -> 0
A103: Tabel 19a. Tilskudsfinansieret forskningsvirksomhed (uk. 95)
A104: ="Løbende priser, "&'Start her!'!E$41 -> Løbende priser, 1000 | C104: Overført overskud fra tidligere år | D104: Årets tilskud | E104: Årets udgifter | F104: Årets resultat | G104: Overskud til videreførsel
A105: navn, ordning | C105: 0 | D105: 0 | E105: 0 | F105: 0 | G105: 0
A106: navn, ordning | C106: 0 | D106: 0 | E106: 0 | F106: 0 | G106: 0
A107: I alt | C107: =SUM(C105:C106) -> 0 | D107: =SUM(D105:D106) -> 0 | E107: =SUM(E105:E106) -> 0 | F107: =SUM(F105:F106) -> 0 | G107: =SUM(G105:G106) -> 0
A109: Tabel 19. Andre tilskudsfinansierede aktiviteter (uk. 97)
A110: ="Løbende priser, "&'Start her!'!E$41 -> Løbende priser, 1000 | C110: Overført overskud fra tidligere år | D110: Årets tilskud | E110: Årets udgifter | F110: Årets resultat | G110: Overskud til videreførsel
A111: Navn, ordning | C111: 0 | D111: 0 | E111: 0 | F111: 0 | G111: 0
A112: Navn, ordning | C112: 0 | D112: 0 | E112: 0 | F112: 0 | G112: 0
A113: I alt | C113: =SUM(C111:C112) -> 0 | D113: =SUM(D111:D112) -> 0 | E113: =SUM(E111:E112) -> 0 | F113: =SUM(F111:F112) -> 0 | G113: =SUM(G111:G112) -> 0
A116: Tabel 20. Oversigt over afsluttede anlægsprojekter
A117: ='Start her!'!E$41 -> 1000
A118: Afsluttede anlægsprojekt | B118: Senest forelagt | C118: Byggestart | D118: Forventet afslutning ved byggestart | E118: Faktisk afslutningstidspunkt | F118: Godkendt budgetteret totaludgift | G118: Faktisk totaludgift
A119: Projekt 1, FL-underkonto | C119: dato | D119: dato | E119: dato | F119: 0 | G119: 0
A120: Projekt 2, FL-underkonto | C120: dato | D120: dato | E120: dato | F120: 0 | G120: 0
A121: Projekt 3, FL-underkonto | C121: dato | D121: dato | E121: dato | F121: 0 | G121: 0
A124: Tabel 21. Oversigt over igangværende anlægsprojekter
A125: ='Start her!'!E$41 -> 1000
A126: Igangværende anlægsprojekt | B126: Senest forelagt | C126: Byggestart | D126: Afholdte udgifter i alt | E126: Afholdte udgifter, indeværende år | F126: Godkendt totaludgift
A127: Projekt 1, FL-underkonto | C127: dato | D127: dato | E127: 0 | F127: 0
A128: Projekt 2, FL-underkonto | C128: dato | D128: dato | E128: 0 | F128: 0
A129: Projekt 3, FL-underkonto | C129: dato | D129: dato | E129: 0 | F129: 0
A132: Tabel 22. It-omkostninger, mio. kr.
A133: Sammensætning | B133: =""&'Start her!'!E$41 -> 1000 | O133: Virksomhed / It omkostninger / Regnskabskonto / Indkøbskategori | P133: Beløbstype | Q133: Regnskab år-til-dato
A134: Interne personaleomkostninger til it (it-drift/-vedligehold/-udvikling) | B134: 0 | O134: I alt | Q134: 9255
A135: It-systemdrift | B135: 0 | O135: 11887252 Kgl. Akademi for de Skønne Kunster | Q135: 9255
A136: It-vedligehold | B136: 0 | O136: Udgifter til it varer til forbrug | Q136: 9255
A137: It-udviklingsomkostninger | B137: 0 | O137: 2260 Køb af IT-varer til forbrug | Q137: 9255
A138: Udgifter til it-varer til forbrug | B138: 0 | O138: 1620 Computere og tilbehør | Q138: 9255
A139: i alt | B139: =SUM(B134:B138) -> 0 | O139: 3010 Institutionsspecifikke varer | Q139: 0
A142: Tabel 23. Tilskudsregnskab
A143: ='Start her!'!E$41 -> 1000 | I143: 20xx
A144: Tilskud | C144: Overført overskud fra tidligere år | D144: Årets tilskud | E144: Disponibel ramme i alt | F144: Regnskab | G144: Årets resultat | H144: Overskud til videreførsel, ultimo | I144: Overskud videreførsel, primo | J144: Bevilling | K144: Disponibel ramme
C145: 0 | D145: 0 | E145: =C145+D145 -> 0 | F145: 0 | G145: =D145-F145 -> 0 | H145: 0 | I145: =H145 -> 0 | J145: 0 | K145: 0
C146: 0 | D146: 0 | E146: =C146+D146 -> 0 | F146: 0 | G146: =D146-F146 -> 0 | H146: 0 | I146: =H146 -> 0 | J146: 0 | K146: 0
C147: 0 | D147: 0 | E147: =C147+D147 -> 0 | F147: 0 | G147: =D147-F147 -> 0 | H147: 0 | I147: =H147 -> 0 | J147: 0 | K147: 0
A150: Tabel 24. Udestående tilsagn
A151: Hovedkonto | C151: Primo-beholdning | D151: Tilgang i året | E151: Afgang i året | F151: Ultimo-beholdning
A152: ='Start her!'!E$41 -> 1000
A153: Hovedkonto 1 | C153: 0 | D153: 0 | E153: 0 | F153: 0
A154: Hovedkonto 2 | C154: 0 | D154: 0 | E154: 0 | F154: 0
A155: Hovedkonto 3 | C155: 0 | D155: 0 | E155: 0 | F155: 0
A158: Tabel 25. Afrapportering på nøgletal for forvaltningsopgaver
A159: Nøgletal | C159: R20xx | D159: R20xx | E159: R20xx | F159: R20xx
A160: ='Start her!'!E$41 -> 1000
A161: Nøgletal x | C161: 0 | D161: 0 | E161: 0 | F161: 0
A162: Nøgletal x | C162: 0 | D162: 0 | E162: 0 | F162: 0
A163: Nøgletal x | C163: 0 | D163: 0 | E163: 0 | F163: 0

Sheet Skabelon til suppl. noter
A1: Supplerende noter | H1: Udskriftegnet version
A3: Supplerende noter til resultatopgørelsen
C4: Forklaring:
A5: [Overskrift] | H5: =A5 -> [Overskrift]
A6: ='Start her!'!E41 -> 1000 | H6: =A6 -> 1000
H7: 0 | I7: =B7 -> 0
H8: 0 | I8: 0
H9: 0 | I9: 0
H10: 0 | I10: 0
H11: 0 | I11: 0
A12: I alt | H12: =A12 -> I alt | I12: 0
A16: Note x: Personaleomkostninger | H16: =A16 -> Note x: Personaleomkostninger
A17: årsværk/antal | B17: Regnskab 2016 | C17: Regnskab 2017 | D17: Regnskab 2018 | E17: Regnskab 2019 | F17: Budget 2020 | H17: =A17 -> årsværk/antal | I17: =B17 -> Regnskab 2016 | J17: =C17 -> Regnskab 2017 | K17: =D17 -> Regnskab 2018 | L17: =E17 -> Regnskab 2019 | M17: =F17 -> Budget 2020
A19: Antal årsværk | B19: 0 | C19: 0 | D19: 0 | E19: 0 | F19: 0 | H19: Antal årsværk | I19: =B19 -> 0 | J19: 0 | K19: =D19 -> 0 | L19: 0 | M19: 0
A20: Tilgang af medarbejdere (antal) | B20: 0 | C20: 0 | D20: 0 | E20: 0 | F20: 0 | H20: Tilgang af medarbejdere | I20: 0 | J20: 0 | K20: 0 | L20: 0 | M20: 0
A21: Afgang af medarbejdere (antal) | B21: 0 | C21: 0 | D21: 0 | E21: 0 | F21: 0 | H21: Afgang af medarbejdere | I21: 0 | J21: 0 | K21: 0 | L21: 0 | M21: 0
